bitfinex-derivatives/quotes_ETHF0:USTF0_20240904
["timestamp","ask_amount","ask_price","bid_price","bid_amount"]
[1725462208845,0.4092,2443.7,2443.1,3.2078]
[1725462209037,0.40921,2443.6,2443.1,3.2078]
[1725462209252,3.2078,2444.0,2443.1,3.2078]
[1725462209548,0.40918,2443.8,2443.3,0.00613761]
[1725462209941,4.50198,2443.8,2443.3,0.00613761]
[1725462210141,0.40919,2443.7,2443.3,0.00613761]
[1725462210647,0.40918,2443.8,2443.3,0.00613761]
[1725462211151,3.2078,2444.0,2443.3,0.00613761]
[1725462211152,0.40919,2443.7,2443.3,0.00613761]
[1725462211552,4.0928,2443.6,2443.3,0.00613761]
[1725462211744,1.6798,2443.5,2443.3,0.00613761]
[1725462211940,13.96651,2443.6,2443.3,0.00613761]
[1725462211941,1.7504,2443.6,2443.3,0.00613761]
[1725462212140,1.6798,2444.1,2443.3,3.21393761]
[1725462212351,2.70265,2444.1,2443.3,0.00613761]
[1725462212542,4.23066,2444.0,2443.3,0.00613761]
[1725462213249,0.40924,2443.4,2443.3,0.00613761]
[1725462213649,4.0928,2443.4,2443.3,0.00613761]
[1725462213856,1.6496,2443.5,2443.3,0.00613761]
[1725462214350,1.6798,2444.1,2443.3,3.21393761]
[1725462214552,1.6496,2444.0,2443.3,3.21393761]
[1725462214858,1.6496,2444.0,2443.4,0.40924]
[1725462215242,1.06873124,2444.4,2443.9,3.2078]
[1725462215448,5.29906124,2444.8,2443.9,3.2078]
[1725462215649,0.4091,2444.3,2443.9,3.2078]
[1725462215856,0.40911,2444.2,2443.5,3.2078]
[1725462216051,0.40913,2444.1,2443.5,3.41524663]
[1725462216252,3.3457,2444.2,2443.5,3.41524663]
[1725462216554,7.4377,2444.2,2443.5,3.2078]
[1725462216758,3.3457,2444.2,2443.5,3.412873]
[1725462217144,0.4092,2443.7,2443.5,3.2078]
[1725462217345,0.40921,2443.6,2443.5,3.2078]
[1725462217544,0.40924,2443.4,2443.3,0.00613761]
[1725462218054,4.0928,2443.4,2443.3,0.00613761]
[1725462218350,4.50204,2443.4,2443.3,0.00613761]
[1725462218551,4.0928,2443.4,2443.3,0.00613761]
[1725462219154,1.6677,2443.6,2443.3,0.00613761]
[1725462219646,4.0928,2443.5,2443.3,0.00613761]
[1725462219847,4.50203,2443.5,2443.3,0.00613761]
[1725462220052,4.0928,2443.4,2443.3,0.00613761]
[1725462220462,1.6677,2443.6,2443.3,0.00613761]
[1725462221655,0.40924,2443.4,2443.3,0.00613761]
[1725462222147,10.50204,2443.4,2443.3,0.00613761]
[1725462222846,4.0928,2443.4,2443.3,0.00613761]
[1725462223064,1.6677,2443.6,2443.3,0.00613761]
[1725462223251,1.7342,2444.0,2443.4,3.2078]
[1725462223454,0.40916,2443.9,2443.3,0.00613761]
[1725462223653,0.40919,2443.8,2443.3,0.00613761]
[1725462223956,5.35115,2444.0,2443.3,0.00613761]
[1725462224149,2.14335,2444.0,2443.3,0.00613761]
[1725462224351,0.40916,2443.9,2443.3,0.00613761]
[1725462224658,1.7342,2444.0,2443.4,0.40922]
[1725462224856,1.7342,2444.0,2443.4,1.7621]
[1725462225159,1.7342,2444.0,2443.6,3.2078]
[1725462225361,1.6896,2444.1,2443.6,3.2078]
[1725462225965,1.6896,2444.1,2443.4,3.433]
[1725462225966,3.5489,2444.4,2443.9,3.2078]
[1725462226654,4.0912,2444.3,2443.9,3.2078]
[1725462226854,3.5489,2444.4,2443.9,3.2078]
[1725462227046,1.7632,2444.4,2443.9,3.2078]
[1725462227445,1.7632,2444.4,2443.8,0.40916]
[1725462227652,1.7632,2444.4,2443.9,3.2078]
[1725462227866,1.7632,2444.4,2443.7,0.40918]
[1725462228052,2.14403,2444.7,2443.9,3.2078]
[1725462228247,1.735,2444.7,2444.0,0.20457531]
[1725462228451,1.735,2444.7,2443.8,3.61697]
[1725462228452,0.40905,2444.6,2443.8,3.61697]
[1725462228850,0.40906,2444.5,2443.8,3.2078]
[1725462229462,0.40906,2444.5,2443.0,0.18960308]
[1725462229463,3.2078,2443.8,2443.0,0.18960308]
[1725462229652,3.2078,2443.8,2441.8,2.06465833]
[1725462229653,2.83,2443.0,2441.8,3.2078]
[1725462229958,2.83,2443.0,2441.8,0.39127774]
[1725462229959,2.83,2442.4,2441.8,0.39127774]
[1725462230160,2.83,2442.4,2441.5,3.41423769]
[1725462230364,2.83,2441.6,2441.5,0.20643769]
[1725462230568,2.83,2441.6,2440.9,3.2078]
[1725462230569,6.44734,2441.6,2440.9,3.2078]
[1725462230863,6.0378,2441.6,2440.9,3.2078]
[1725462231164,3.2078,2441.6,2441.3,0.00613761]
[1725462231463,2.83613761,2441.8,2441.3,0.00613761]
[1725462231952,0.00613761,2441.8,2441.3,0.00613761]
[1725462232659,0.00613761,2441.8,2441.3,0.41572761]
[1725462232858,0.00613761,2441.8,2441.5,3.2078]
[1725462233070,0.00613761,2441.8,2441.6,0.40953]
[1725462233260,0.00613761,2441.8,2441.7,1.6525]
[1725462233562,3.2078,2442.8,2441.7,11.7477]
[1725462233757,3.2078,2442.8,2441.9,3.2078]
[1725462234150,3.2078,2442.8,2441.7,1.6525]
[1725462234758,3.61714,2442.8,2441.9,3.2078]
[1725462234951,3.2078,2442.8,2441.9,3.2078]
[1725462235164,3.3675,2442.9,2441.9,3.2078]
[1725462235364,1.6819,2443.1,2442.2,3.2078]
[1725462235658,2.0912,2443.1,2442.3,0.20465967]
[1725462235861,3.2078,2443.2,2442.2,3.2078]
[1725462236061,3.2078,2443.2,2442.5,3.2078]
[1725462236256,0.40933,2442.9,2442.6,0.00613761]
[1725462236459,3.2078,2443.1,2442.6,0.00613761]
[1725462236660,0.40933,2442.9,2442.6,0.00613761]
[1725462236865,0.40936,2442.7,2442.6,0.00613761]
[1725462237067,4.0936,2442.7,2442.6,0.00613761]
[1725462237363,3.2078,2443.1,2442.6,0.00613761]
[1725462237554,0.40934,2442.8,2442.6,0.00613761]
[1725462237956,3.2078,2442.8,2442.6,0.00613761]
[1725462238162,4.50296,2442.7,2442.6,0.00613761]
[1725462238558,0.40942,2442.4,2441.9,1.7818]
[1725462238865,3.2078,2442.4,2441.9,1.96972791]
[1725462239072,0.40941,2442.4,2441.9,1.96972791]
[1725462239257,0.4094,2442.5,2441.9,1.96972791]
[1725462239464,0.00613761,2442.4,2442.0,0.00613761]
[1725462239864,0.41555761,2442.4,2442.0,0.00613761]
[1725462240263,0.00613761,2442.4,2442.1,3.40802843]
[1725462240459,0.00613761,2442.4,2442.1,3.2078]
[1725462240690,0.00613761,2442.4,2442.1,0.20821137]
[1725462240863,0.00613761,2442.4,2442.0,0.00613761]
[1725462241173,0.40946,2442.1,2442.0,0.00613761]
[1725462241474,0.40946,2442.1,2441.3,0.40958]
[1725462241475,13.303,2442.1,2441.2,3.2078]
[1725462241769,2.95,2442.3,2440.9,3.39719038]
[1725462241770,3.2078,2441.8,2440.9,3.39719038]
[1725462242067,0.40955,2441.6,2440.9,3.39719038]
[1725462242273,3.2078,2441.9,2440.9,3.39719038]
[1725462242576,0.40954,2441.7,2440.9,3.39719038]
[1725462243061,0.40954,2441.7,2441.1,0.00613761]
[1725462243467,3.2078,2441.9,2441.1,0.21105396]
[1725462243667,10.5684162,2445.7,2441.1,0.21105396]
[1725462243668,0.00613761,2442.4,2441.6,3.2078]
[1725462243875,0.00613761,2442.4,2441.9,3.2078]
[1725462244671,0.00613761,2442.4,2442.2,3.61724]
[1725462244874,0.00613761,2442.4,2442.3,5.8562]
[1725462245568,0.40927,2443.3,2442.3,12.26562]
[1725462245769,0.40926,2443.3,2442.5,3.2078]
[1725462246074,0.40924,2443.4,2442.5,3.2078]
[1725462246278,9.533,2443.6,2442.6,0.2048549]
[1725462246567,9.533,2443.6,2442.5,3.2078]
[1725462246568,3.2078,2443.3,2442.5,3.2078]
[1725462246762,0.00613761,2443.1,2442.7,0.00613761]
[1725462247669,7.3014,2443.0,2442.7,0.00613761]
[1725462247872,7.3014,2443.0,2441.7,3.2078]
[1725462247873,2.95,2442.9,2441.7,3.2078]
[1725462248071,0.40941,2442.4,2441.8,1.8041]
[1725462248275,0.40945,2442.2,2441.8,1.8041]
[1725462248569,0.40943,2442.3,2441.8,1.8041]
[1725462248960,3.2078,2442.5,2441.6,0.1895374]
[1725462248961,0.40948,2442.0,2441.6,0.1895374]
[1725462249163,2.7119,2442.8,2441.6,0.1895374]
[1725462249164,2.95,2441.7,2441.6,0.00613761]
[1725462249368,7.45473,2441.7,2441.6,0.00613761]
[1725462249571,7.45473,2441.7,2440.6,1.8041]
[1725462249572,13.0452,2441.7,2440.6,1.8041]
[1725462249868,13.0452,2441.7,2440.6,2.00755969]
[1725462249869,3.61738,2441.4,2440.6,2.00755969]
[1725462250077,3.61739,2441.4,2440.6,2.00755969]
[1725462250473,0.40959,2441.3,2440.6,2.00755969]
[1725462250772,0.00613761,2441.2,2440.8,0.00613761]
[1725462251368,3.2078,2442.1,2441.1,3.2078]
[1725462251874,3.2078,2442.1,2441.4,3.2078]
[1725462252063,3.2078,2442.1,2441.5,1.8338]
[1725462252064,3.61727,2442.1,2441.5,1.8338]
[1725462252265,3.2078,2442.1,2441.5,1.8338]
[1725462252468,0.00613761,2442.0,2441.5,1.8338]
[1725462253573,0.00613761,2442.0,2441.5,5.929]
[1725462253777,0.00613761,2442.0,2441.7,3.2078]
[1725462253972,0.00613761,2442.0,2441.8,4.0952]
[1725462254168,0.00613761,2442.0,2441.7,3.2078]
[1725462254169,0.00613761,2442.0,2441.9,4.0952]
[1725462254369,0.00613761,2442.0,2441.9,0.20493783]
[1725462254579,4.7124,2443.1,2442.3,0.40942]
[1725462254580,3.1778,2443.1,2442.3,0.40942]
[1725462254871,1.7805,2443.4,2441.9,10.5048]
[1725462254872,3.2078,2443.4,2442.4,1.6944]
[1725462255082,0.40928,2443.2,2442.4,1.6944]
[1725462255477,0.00613761,2443.0,2442.6,0.00613761]
[1725462255780,0.00613761,2443.0,2442.3,1.6657]
[1725462255781,6.1578,2442.7,2441.9,0.4096]
[1725462255969,0.00613761,2443.0,2441.1,5.1072]
[1725462255970,3.2078,2442.3,2441.1,5.1072]
[1725462256168,0.40946,2442.1,2441.4,3.2078]
[1725462257174,3.2078,2442.3,2441.5,0.00613761]
[1725462257480,0.40946,2442.1,2441.5,0.00613761]
[1725462257978,6.559,2442.6,2441.5,0.00613761]
[1725462257979,0.40939,2442.6,2441.7,3.2078]
[1725462258283,0.40943,2442.3,2441.8,3.5216]
[1725462258580,3.2078,2442.9,2441.9,0.20082229]
[1725462258779,3.2078,2442.9,2442.0,0.19981899]
[1725462258968,3.2078,2442.6,2441.8,3.5216]
[1725462259167,0.40944,2442.2,2441.8,1.7842]
[1725462259370,3.2078,2442.6,2441.8,1.7842]
[1725462259585,0.4094,2442.5,2441.8,1.7842]
[1725462259886,0.40939,2442.5,2441.8,1.7842]
[1725462260175,0.40944,2442.3,2441.8,1.7842]
[1725462260386,1.02344,2442.6,2441.8,1.7842]
[1725462260566,0.40943,2442.3,2441.8,1.7842]
[1725462261082,3.2078,2442.7,2441.8,1.7842]
[1725462261280,3.2078,2442.4,2441.8,1.7842]
[1725462261472,4.23135,2442.4,2441.7,3.39177204]
[1725462261678,0.40951,2441.8,2441.7,3.2078]
[1725462261973,0.40951,2441.8,2441.5,0.00613761]
[1725462261974,0.40954,2441.6,2441.5,3.21393761]
[1725462262379,4.9173,2442.1,2441.5,3.21393761]
[1725462262380,0.40953,2441.7,2441.5,3.21393761]
[1725462262574,4.9173,2442.1,2441.5,3.21393761]
[1725462262781,0.40954,2441.6,2441.5,3.21393761]
[1725462262982,0.40954,2441.6,2441.5,0.00613761]
[1725462263484,0.40952,2441.8,2441.5,0.00613761]
[1725462263876,1.0237,2442.0,2441.5,0.00613761]
[1725462264170,0.40954,2441.6,2441.5,0.00613761]
[1725462264480,0.40953,2441.7,2441.5,0.00613761]
[1725462264682,0.40954,2441.6,2441.5,0.00613761]
[1725462264877,0.40953,2441.7,2441.5,0.00613761]
[1725462265077,0.40954,2441.6,2441.5,0.00613761]
[1725462265572,4.50554,2441.6,2441.5,0.00613761]
[1725462265974,11.5294,2441.6,2441.5,0.00613761]
[1725462266277,0.40963,2441.1,2440.6,2.34865969]
[1725462266472,0.40967,2440.9,2440.6,2.12585865]
[1725462266672,3.2078,2441.1,2440.6,1.92239896]
[1725462266979,4.23191,2441.1,2440.6,1.7355]
[1725462267182,4.23191,2441.1,2440.6,1.74163761]
[1725462267183,3.21393761,2441.1,2440.6,1.74163761]
[1725462267377,0.40967,2440.9,2440.6,1.74163761]
[1725462267777,0.40968,2440.8,2440.6,1.74163761]
[1725462268179,3.21393761,2441.1,2440.6,1.74163761]
[1725462268388,0.40969,2440.7,2440.6,0.00613761]
[1725462268775,4.50729,2440.7,2440.6,0.00613761]
[1725462268982,5.53153,2440.7,2440.6,0.00613761]
[1725462269780,0.40969,2440.7,2440.6,0.00613761]
[1725462270082,5.53153,2440.7,2440.6,0.00613761]
[1725462270482,1.02435,2440.5,2440.1,0.18931867]
[1725462270675,4.42244,2440.7,2440.1,0.40979]
[1725462270877,3.3982,2440.7,2440.1,0.19987871]
[1725462271084,3.21393761,2441.1,2440.0,3.2078]
[1725462271286,0.40968,2440.8,2440.1,2.82119]
[1725462271484,0.40967,2440.9,2440.5,0.40972]
[1725462271689,0.40965,2441.0,2440.6,0.40971]
[1725462271879,3.62357761,2441.1,2440.6,0.4097]
[1725462272079,3.21393761,2441.1,2440.7,1.733]
[1725462272289,4.23802761,2441.1,2440.7,1.733]
[1725462272485,0.40968,2440.8,2440.7,1.733]
[1725462272687,0.40967,2440.9,2440.7,1.733]
[1725462272995,0.40965,2441.0,2440.7,1.733]
[1725462273691,0.40967,2440.9,2440.7,1.733]
[1725462273990,0.40968,2440.8,2440.7,1.733]
[1725462274186,1.02413,2441.0,2440.3,3.2078]
[1725462274383,0.40969,2440.8,2440.4,1.8087]
[1725462274685,0.40965,2441.0,2440.4,1.8087]
[1725462274893,0.40965,2441.0,2440.5,2.15143]
[1725462275095,3.2078,2441.8,2440.9,3.2078]
[1725462275280,1.02382,2441.7,2441.0,1.8087]
[1725462275484,0.40959,2441.3,2441.0,1.8087]
[1725462275688,1.02379,2441.8,2441.0,1.8087]
[1725462275885,0.40961,2441.2,2441.0,1.8087]
[1725462276087,0.4096,2441.3,2441.0,1.8087]
[1725462276387,0.41573761,2441.3,2441.0,1.8087]
[1725462276586,4.0968,2441.2,2441.0,1.8087]
[1725462276787,0.00613761,2441.3,2440.9,3.2078]
[1725462277088,0.40962,2441.2,2440.9,3.2078]
[1725462277391,0.40964,2441.0,2440.9,3.2078]
[1725462277979,0.40964,2441.1,2440.9,3.2078]
[1725462278188,1.03014761,2441.3,2440.5,1.7417]
[1725462278189,0.40964,2441.0,2440.5,1.7417]
[1725462278390,0.40964,2441.1,2440.6,0.4097]
[1725462278692,0.40964,2441.1,2440.7,0.40969]
[1725462278886,0.40963,2441.1,2440.7,0.40969]
[1725462279090,0.40963,2441.1,2440.6,0.4097]
[1725462279293,0.40965,2441.0,2440.5,2.34105163]
[1725462279587,1.03014761,2441.3,2440.6,0.40971]
[1725462279790,0.40964,2441.1,2440.5,1.93133163]
[1725462280092,0.40964,2441.0,2440.5,2.34105163]
[1725462280286,1.0241,2441.1,2440.5,1.93133163]
[1725462280487,1.0241,2441.1,2440.5,0.18963163]
[1725462280488,0.40971,2440.7,2440.5,0.18963163]
[1725462280695,0.40971,2440.7,2440.4,5.0165]
[1725462280696,0.4097,2440.7,2440.4,5.0165]
[1725462280889,1.02421,2440.8,2440.4,3.2078]
[1725462281089,1.43417,2440.3,2440.2,0.00613761]
[1725462282096,6.55618,2440.3,2440.2,0.00613761]
[1725462282394,5.53177,2440.3,2440.2,0.00613761]
[1725462283102,6.55618,2440.3,2440.2,0.00613761]
[1725462283295,12.55618,2440.3,2440.2,0.00613761]
[1725462283593,0.40985,2439.8,2439.4,4.8947]
[1725462283811,1.02447,2440.2,2439.4,4.8947]
[1725462283997,0.40978,2440.2,2439.5,1.02474]
[1725462284199,0.40978,2440.2,2439.9,0.40983]
[1725462284394,0.40978,2440.2,2439.8,0.40983]
[1725462284595,0.40978,2440.2,2439.9,0.40983]
[1725462284802,0.41590761,2440.3,2439.9,0.40983]
[1725462284993,0.41590761,2440.3,2440.0,0.40981]
[1725462284994,0.00613761,2440.3,2440.0,0.40981]
[1725462285398,0.41589761,2440.3,2439.9,2.12562]
[1725462285705,0.00613761,2440.3,2439.9,1.7158]
[1725462285895,0.00613761,2440.3,2439.9,2.12562]
[1725462286095,0.00613761,2440.3,2440.0,3.2078]
[1725462286291,0.41590761,2440.3,2439.9,1.7158]
[1725462286800,0.00613761,2440.3,2439.8,0.00613761]
[1725462287101,0.40978,2440.2,2439.8,0.00613761]
[1725462287296,0.41590761,2440.3,2439.8,0.41597761]
[1725462287701,0.41590761,2440.3,2439.8,0.00613761]
[1725462287702,0.00613761,2440.3,2439.8,0.00613761]
[1725462287901,0.40978,2440.2,2439.8,0.00613761]
[1725462288096,0.00613761,2440.3,2439.8,0.00613761]
[1725462288602,0.00613761,2440.3,2439.8,0.19714771]
[1725462288792,0.00613761,2440.3,2439.8,0.00613761]
[1725462288996,0.40982,2440.0,2439.8,0.00613761]
[1725462289303,0.00613761,2440.3,2439.9,4.0984]
[1725462289503,0.00613761,2440.3,2439.9,3.2078]
[1725462289706,0.00613761,2440.3,2440.1,0.40979]
[1725462289911,0.00613761,2440.3,2440.2,1.705]
[1725462290805,0.00613761,2440.3,2440.2,5.8026]
[1725462291704,0.00613761,2440.3,2440.2,1.705]
[1725462292404,0.41589761,2440.3,2440.2,1.705]
[1725462292608,0.40978,2440.2,2439.9,3.2078]
[1725462292908,0.41590761,2440.3,2439.9,3.3948284]
[1725462293099,0.00613761,2440.3,2440.0,0.20592128]
[1725462293291,0.00613761,2440.3,2439.9,3.3948284]
[1725462293497,0.00613761,2440.3,2440.0,0.4098]
[1725462293700,0.00613761,2440.3,2440.1,0.2056344]
[1725462293905,0.00613761,2440.3,2440.0,0.4098]
[1725462294104,0.00613761,2440.3,2440.1,0.20251966]
[1725462294408,0.00613761,2440.3,2439.9,3.8046484]
[1725462294704,0.00613761,2440.3,2440.0,0.2031549]
[1725462294908,0.00613761,2440.3,2440.0,0.6129649]
[1725462295400,0.00613761,2440.3,2440.0,0.2031549]
[1725462295605,0.00613761,2440.3,2440.0,0.4098]
[1725462295807,0.00613761,2440.3,2440.0,0.61453276]
[1725462296111,3.2078,2441.1,2440.2,3.2078]
[1725462296314,3.2078,2441.1,2440.7,0.40968]
[1725462296607,3.2078,2441.1,2440.8,0.40967]
[1725462296796,3.2078,2441.1,2440.7,0.40968]
[1725462297300,3.21393761,2441.1,2440.8,0.40967]
[1725462297609,3.2078,2441.8,2440.9,5.8525]
[1725462297903,0.40948,2442.0,2441.3,0.40959]
[1725462298111,0.40948,2442.0,2441.4,0.20999553]
[1725462298300,0.40948,2442.0,2441.2,3.2078]
[1725462298301,0.4095,2441.9,2441.2,3.6174]
[1725462298501,0.00613761,2441.8,2441.3,0.00613761]
[1725462298694,0.00613761,2441.8,2441.3,0.2127319]
[1725462298893,0.00613761,2441.8,2441.3,0.00613761]
[1725462299297,0.41564761,2441.8,2441.3,0.00613761]
[1725462299517,0.40953,2441.7,2441.3,0.00613761]
[1725462299914,0.00613761,2441.8,2441.3,0.00613761]
[1725462300202,1.71273761,2441.8,2441.3,0.00613761]
[1725462300409,3.61738,2441.4,2441.3,0.00613761]
[1725462300795,14.73733,2441.4,2441.3,0.00613761]
[1725462300999,13.71338,2441.4,2441.3,0.00613761]
[1725462301195,13.71338,2441.4,2440.8,3.39811016]
[1725462301196,0.40966,2440.9,2440.8,3.2078]
[1725462301400,0.40965,2441.0,2440.8,3.2078]
[1725462301613,0.40963,2441.1,2440.8,3.2078]
[1725462301913,0.40964,2441.0,2440.8,3.2078]
[1725462302101,0.40964,2441.0,2440.6,0.18648144]
[1725462302301,1.7857,2441.2,2440.6,0.00613761]
[1725462302607,3.2078,2441.4,2440.7,0.40969]
[1725462302807,0.40959,2441.4,2440.8,0.40966]
[1725462303013,0.40958,2441.4,2440.7,3.61748]
[1725462303305,0.00613761,2441.8,2441.2,0.4096]
[1725462303510,0.00613761,2441.8,2441.3,5.51289888]
[1725462303703,0.00613761,2441.8,2441.3,5.30928]
[1725462303898,0.00613761,2441.8,2441.3,4.8997]
[1725462304420,0.00613761,2441.8,2441.4,0.40957]
[1725462304606,0.00613761,2441.8,2441.3,5.10921791]
[1725462304909,0.00613761,2441.8,2441.4,2.17117]
[1725462305114,0.00613761,2441.8,2441.4,1.7616]
[1725462305302,2.19512,2442.4,2441.7,0.40953]
[1725462305505,1.7857,2442.4,2441.9,0.40949]
[1725462305803,5.40278,2442.6,2442.0,1.8028]
[1725462305804,0.40939,2442.5,2442.0,1.8028]
[1725462306005,3.2078,2442.3,2441.5,1.6859]
[1725462306210,0.40948,2442.0,2441.5,1.8028]
[1725462306412,0.40954,2441.6,2441.5,0.00613761]
[1725462306604,3.97374,2441.9,2441.5,0.00613761]
[1725462306605,9.35224,2441.9,2441.5,0.00613761]
[1725462306805,0.40954,2441.6,2441.5,0.00613761]
[1725462307201,4.50554,2441.6,2441.5,0.00613761]
[1725462307397,10.50554,2441.6,2441.5,0.00613761]
[1725462307602,10.50554,2441.6,2440.4,1.23439157]
[1725462307603,0.40968,2440.8,2440.5,0.18394869]
[1725462307800,0.40967,2440.9,2440.5,0.18394869]
[1725462308015,0.40968,2440.8,2440.5,0.18394869]
[1725462308204,0.40968,2440.8,2440.3,1.8028]
[1725462308710,0.40967,2440.9,2440.3,1.80893761]
[1725462308909,3.97406,2441.2,2440.3,1.80893761]
[1725462308910,0.40962,2441.2,2440.4,3.2078]
[1725462309115,0.40962,2441.2,2440.5,0.40972]
[1725462309317,0.40961,2441.2,2440.6,0.4097]
[1725462309616,1.7856,2441.3,2440.7,3.2078]
[1725462309920,2.95,2441.9,2440.7,3.2078]
[1725462309921,0.00613761,2442.0,2441.0,3.2078]
[1725462310106,1.06529045,2442.6,2441.8,3.2078]
[1725462310303,0.40938,2442.6,2442.0,0.40947]
[1725462310503,3.61716,2442.7,2442.1,2.06955]
[1725462310721,1.7175,2443.0,2442.2,3.2078]
[1725462311005,0.40932,2442.9,2442.1,5.27735]
[1725462311209,0.40935,2442.8,2442.1,5.27735]
[1725462311407,0.40938,2442.6,2442.3,0.00613761]
[1725462312115,0.40941,2442.4,2442.3,0.00613761]
[1725462312607,14.73514,2442.4,2442.3,0.00613761]
[1725462312806,8.73514,2442.4,2442.3,0.00613761]
[1725462313007,4.50381,2442.4,2442.3,0.00613761]
[1725462313203,10.50381,2442.4,2442.3,0.00613761]
[1725462313413,14.73514,2442.4,2442.3,0.00613761]
[1725462313616,4.0944,2442.4,2442.3,0.00613761]
[1725462313819,4.50381,2442.4,2442.3,0.00613761]
[1725462314020,4.0944,2442.4,2442.3,0.00613761]
[1725462314212,0.41550761,2442.7,2442.3,0.00613761]
[1725462314609,0.40938,2442.6,2442.3,0.00613761]
[1725462315313,0.00613761,2442.7,2442.3,0.00613761]
[1725462315513,0.40938,2442.6,2442.3,0.00613761]
[1725462316111,0.00613761,2442.7,2442.3,0.00613761]
[1725462316612,0.40939,2442.5,2442.3,0.00613761]
[1725462317007,0.41550761,2442.7,2442.3,0.00613761]
[1725462317207,0.00613761,2442.7,2442.4,3.2078]
[1725462317414,0.00613761,2442.7,2442.4,3.6172]
[1725462317624,0.00613761,2442.7,2442.5,0.40939]
[1725462317823,0.00613761,2442.7,2442.4,3.2078]
[1725462318010,0.00613761,2442.7,2442.3,0.00613761]
[1725462318323,0.40941,2442.4,2442.3,0.00613761]
[1725462318624,0.41549761,2442.7,2442.3,0.00613761]
[1725462318915,0.00613761,2442.7,2442.3,0.00613761]
[1725462319122,0.00613761,2442.7,2442.4,3.6172]
[1725462319314,0.00613761,2442.7,2442.4,3.2078]
[1725462319520,0.00613761,2442.7,2442.4,7.3022]
[1725462319722,0.00613761,2442.7,2442.5,0.40939]
[1725462320216,0.00613761,2442.7,2442.6,4.50297]
[1725462321119,0.00613761,2442.7,2442.6,4.0936]
[1725462321324,0.00613761,2442.7,2442.6,10.50297]
[1725462321625,0.00613761,2442.7,2442.6,4.0936]
[1725462322017,0.40928,2443.2,2442.6,4.0936]
[1725462322323,0.40928,2443.2,2442.5,0.18663753]
[1725462322324,0.40928,2443.2,2442.7,5.33396]
[1725462322522,3.2078,2443.6,2442.8,0.61895454]
[1725462322523,0.40927,2443.3,2442.8,0.61895454]
[1725462322713,3.3882,2443.8,2442.8,0.20961454]
[1725462322914,0.41536761,2443.5,2443.0,3.2078]
[1725462323122,0.00613761,2443.5,2443.1,0.61137079]
[1725462323421,0.00613761,2443.5,2443.0,3.6171]
[1725462323721,0.00613761,2443.5,2443.1,0.40929]
[1725462323924,0.00613761,2443.5,2443.0,3.41219414]
[1725462324223,0.00613761,2443.5,2443.1,0.40929]
[1725462324920,0.00613761,2443.5,2443.0,3.41219414]
[1725462325124,0.00613761,2443.5,2443.1,2.21898]
[1725462325334,0.00613761,2443.5,2443.3,0.40925]
[1725462325518,0.00613761,2443.5,2443.4,0.40924]
[1725462325824,4.9448,2444.5,2443.4,6.18393]
[1725462325825,3.2078,2444.5,2443.4,6.18393]
[1725462326121,3.2078,2444.5,2443.6,0.4092]
[1725462326317,0.4091,2444.3,2443.7,5.33749]
[1725462326622,4.46883,2444.6,2443.8,0.41530761]
[1725462326623,0.40908,2444.4,2443.8,0.41530761]
[1725462326929,6.654,2444.6,2443.8,0.00613761]
[1725462327225,0.4091,2444.3,2443.8,0.00613761]
[1725462327425,0.40911,2444.2,2443.8,0.00613761]
[1725462327622,0.40902,2444.8,2444.1,3.2078]
[1725462327836,0.40904,2444.6,2443.8,2.21770761]
[1725462328135,3.2078,2444.7,2443.8,0.00613761]
[1725462328328,3.2078,2444.4,2443.8,0.00613761]
[1725462328528,3.5185,2444.5,2443.8,0.00613761]
[1725462328824,0.40909,2444.3,2443.8,0.00613761]
[1725462329221,0.40914,2444.1,2443.8,0.00613761]
[1725462329417,3.2078,2444.4,2443.8,0.00613761]
[1725462329418,0.40912,2444.2,2443.8,0.00613761]
[1725462329614,0.4091,2444.3,2443.8,0.00613761]
[1725462329920,3.5185,2444.5,2443.8,0.00613761]
[1725462330119,0.40908,2444.4,2443.8,0.00613761]
[1725462330424,0.40912,2444.2,2443.8,0.00613761]
[1725462330723,2.95,2444.4,2443.8,0.00613761]
[1725462331026,0.40923,2443.5,2443.2,1.7705]
[1725462331214,0.40916,2443.9,2443.2,1.7705]
[1725462331215,0.40922,2443.6,2443.2,1.7705]
[1725462331423,0.40916,2443.9,2443.2,1.7705]
[1725462331424,0.40923,2443.5,2443.2,1.7705]
[1725462331910,0.41535761,2443.6,2443.2,1.7705]
[1725462332114,0.40923,2443.5,2443.2,1.7705]
[1725462332323,4.09893761,2443.6,2443.1,0.00613761]
[1725462332531,3.61707,2443.2,2443.1,0.00613761]
[1725462332821,0.40941,2442.4,2441.8,0.39676425]
[1725462333048,3.2078,2442.5,2441.9,3.61729]
[1725462333229,6.5913,2443.1,2441.9,3.2078]
[1725462333413,0.40937,2442.7,2441.9,3.2078]
[1725462333821,0.00613761,2442.5,2442.2,3.2078]
[1725462334025,0.00613761,2442.5,2442.1,0.00613761]
[1725462334425,0.40941,2442.4,2442.1,0.00613761]
[1725462334615,0.00613761,2442.5,2442.1,0.00613761]
[1725462334616,0.41553761,2442.5,2442.1,0.00613761]
[1725462335018,0.00613761,2442.5,2442.1,0.00613761]
[1725462335330,0.40942,2442.3,2442.1,0.00613761]
[1725462335640,2.06661,2442.4,2442.1,0.00613761]
[1725462336125,0.00613761,2442.5,2442.1,0.00613761]
[1725462337128,0.00613761,2442.5,2442.1,3.21393761]
[1725462337527,0.00613761,2442.5,2442.1,0.00613761]
[1725462338532,2.95,2442.2,2441.0,0.205]
[1725462338734,3.2078,2441.7,2441.0,0.205]
[1725462338927,0.40954,2441.6,2440.8,3.2078]
[1725462339232,0.40958,2441.4,2440.8,3.2078]
[1725462339533,3.61734,2441.6,2440.8,3.4166605]
[1725462339832,3.61734,2441.6,2441.0,0.00613761]
[1725462340029,3.61735,2441.6,2441.0,0.00613761]
[1725462340328,4.096,2441.5,2441.0,0.00613761]
[1725462340534,0.40963,2441.1,2441.0,0.00613761]
[1725462340732,3.2078,2441.3,2441.0,0.00613761]
[1725462340733,0.40961,2441.2,2441.0,0.00613761]